bitfinex/quotes_BTCUSD_20260311
["timestamp","ask_amount","ask_price","bid_price","bid_amount"]
[1773223263163,0.00116,69465.0,69452.0,0.000275]
[1773223263940,0.00069701,69464.0,69452.0,0.000275]
[1773223264150,0.00069701,69466.0,69452.0,0.000275]
[1773223264346,0.0719818,69462.0,69452.0,0.000275]
[1773223264794,0.00116,69461.0,69452.0,0.000275]
[1773223264973,0.07267881,69464.0,69453.0,0.07199113]
[1773223264974,0.00069701,69464.0,69453.0,0.07199113]
[1773223265297,0.00116,69463.0,69453.0,0.07199113]
[1773223265502,0.00116,69463.0,69452.0,0.07226613]
[1773223265645,0.00116,69463.0,69452.0,0.000275]
[1773223265851,0.00169701,69462.0,69452.0,0.000275]
[1773223266294,0.07198283,69461.0,69452.0,0.07226687]
[1773223266870,0.07314283,69461.0,69452.0,0.07226687]
[1773223267268,0.00116,69461.0,69452.0,0.07226687]
[1773223267486,0.00116,69463.0,69452.0,0.07226687]
[1773223267688,0.07197461,69469.0,69452.0,0.07226687]
[1773223268007,0.00116,69464.0,69452.0,0.07226687]
[1773223268500,0.07314072,69464.0,69452.0,0.07226687]
[1773223269382,0.00116,69464.0,69452.0,0.07226687]
[1773223269585,0.07314002,69464.0,69452.0,0.07226687]
[1773223269806,0.07198002,69464.0,69452.0,0.07226687]
[1773223270615,0.07198002,69464.0,69452.0,0.07326687]
[1773223270942,0.07198002,69464.0,69452.0,0.07226687]
[1773223271837,0.07198002,69464.0,69452.0,0.07326687]
[1773223272803,0.07198002,69464.0,69452.0,0.07226687]
[1773223273240,0.07198002,69464.0,69452.0,0.07326687]
[1773223273396,0.07198002,69464.0,69452.0,0.07226687]
[1773223274262,0.07196759,69476.0,69454.0,0.03978199]
[1773223274454,0.07196759,69476.0,69452.0,0.07296406]
[1773223274455,0.07196853,69475.0,69460.0,0.03978199]
[1773223274671,0.07204107,69478.0,69459.0,0.00116]
[1773223274864,0.07197454,69469.0,69452.0,0.07226692]
[1773223275004,0.07197454,69469.0,69452.0,0.07326692]
[1773223275856,0.00116,69468.0,69452.0,0.07326692]
[1773223276864,0.07197454,69472.0,69452.0,0.07326692]
[1773223276865,0.07218523,69479.0,69452.0,0.07326692]
[1773223277035,0.00022001,69470.0,69453.0,0.00116]
[1773223277234,0.00116,69474.0,69453.0,0.00116]
[1773223277455,0.00116,69474.0,69460.0,0.03978199]
[1773223277657,0.00116,69475.0,69461.0,0.00116]
[1773223277863,0.07204022,69478.0,69462.0,0.00116]
[1773223277864,7.5e-05,69478.0,69462.0,0.00116]
[1773223278082,7.5e-05,69478.0,69463.0,0.00116]
[1773223279002,1e-08,69479.0,69464.0,0.07197973]
[1773223279920,0.07196522,69478.0,69463.0,0.07198039]
[1773223280123,0.07312522,69478.0,69463.0,0.07298039]
[1773223280328,0.07312522,69478.0,69463.0,0.07198039]
[1773223280744,0.07312522,69478.0,69464.0,0.001]
[1773223280966,0.07312524,69478.0,69465.0,0.07197869]
[1773223281175,0.07312531,69478.0,69465.0,0.07197869]
[1773223282306,0.00116,69478.0,69465.0,0.07197869]
[1773223282699,1e-08,69479.0,69465.0,0.07197869]
[1773223282908,0.00116,69478.0,69465.0,0.07197869]
[1773223283111,0.00116,69478.0,69464.0,0.07197869]
[1773223283310,1e-08,69479.0,69464.0,0.07197869]
[1773223283516,0.00022001,69484.0,69469.0,0.03978199]
[1773223283719,0.00022001,69484.0,69470.0,0.00116]
[1773223284079,0.07217928,69484.0,69470.0,0.00116]
[1773223284296,0.03978199,69480.0,69470.0,7.5e-05]
[1773223284449,0.07217928,69484.0,69470.0,7.5e-05]
[1773223284655,0.03978199,69480.0,69470.0,7.5e-05]
[1773223284853,0.00116,69479.0,69470.0,7.5e-05]
[1773223285285,0.07196522,69478.0,69470.0,7.5e-05]
[1773223289236,0.07296522,69478.0,69470.0,7.5e-05]
[1773223289638,0.07196522,69478.0,69470.0,7.5e-05]
[1773223292457,0.07196522,69478.0,69461.0,0.07205714]
[1773223293429,0.07334523,69479.0,69461.0,7.5e-05]
[1773223293430,0.07218492,69479.0,69461.0,7.5e-05]
[1773223293644,0.001,69478.0,69461.0,0.001235]
[1773223293829,0.07334468,69479.0,69461.0,0.001235]
[1773223294375,0.00116,69478.0,69463.0,0.0002]
[1773223294993,0.07218468,69479.0,69463.0,0.0002]
[1773223294994,0.00022001,69479.0,69463.0,0.0002]
[1773223295196,0.07218459,69479.0,69463.0,0.0002]
[1773223295601,7.5e-05,69478.0,69463.0,0.0002]
[1773223296966,7.5e-05,69478.0,69463.0,0.0012]
[1773223297609,7.5e-05,69478.0,69464.0,0.07197973]
[1773223299221,0.03978199,69474.0,69461.0,7.5e-05]
[1773223299440,0.03978199,69474.0,69464.0,0.001]
[1773223299647,7.5e-05,69478.0,69463.0,0.001]
[1773223299845,0.00116,69477.0,69463.0,0.07198034]
[1773223299993,0.00116,69477.0,69464.0,0.001]
[1773223300192,0.00116,69477.0,69463.0,0.07198034]
[1773223300403,0.00116,69476.0,69463.0,0.07198034]
[1773223300736,0.001,69474.0,69463.0,0.07198034]
[1773223301828,0.00116,69476.0,69461.0,7.5e-05]
[1773223301829,0.07196833,69475.0,69461.0,7.5e-05]
[1773223302024,0.07175241,69475.0,69463.0,0.0002]
[1773223304166,0.00116,69474.0,69463.0,0.0002]
[1773223304379,0.07196833,69477.0,69463.0,0.0002]
[1773223304380,0.00116,69473.0,69463.0,0.0002]
[1773223306218,0.07197144,69472.0,69456.0,0.07218802]
[1773223306908,0.07197144,69472.0,69456.0,0.0002]
[1773223307261,0.07297144,69472.0,69456.0,0.0002]
[1773223308318,0.03981354,69470.0,69456.0,0.0002]
[1773223308518,0.03981354,69470.0,69452.0,0.000275]
[1773223309477,0.03981354,69462.0,69448.0,1e-08]
[1773223309651,0.00116,69461.0,69448.0,1e-08]
[1773223310113,0.00116,69461.0,69454.0,0.0002]
[1773223310287,0.07198387,69460.0,69454.0,0.0002]
[1773223310486,0.07198387,69460.0,69448.0,1e-08]
[1773223310926,0.00116,69459.0,69448.0,1e-08]
[1773223312039,0.00116,69458.0,69448.0,1e-08]
[1773223312374,0.07198698,69457.0,69448.0,1e-08]
[1773223312571,0.07314698,69457.0,69448.0,1e-08]
[1773223312899,0.07198698,69457.0,69448.0,1e-08]
[1773223313095,0.07314698,69457.0,69448.0,1e-08]
[1773223313970,0.07314698,69457.0,69448.0,0.00100001]
[1773223314420,0.07198698,69457.0,69448.0,0.00100001]
[1773223314644,0.07314698,69457.0,69448.0,0.00100001]
[1773223314922,0.07198698,69457.0,69448.0,0.00100001]
[1773223315071,0.07314698,69457.0,69448.0,1e-08]
[1773223316092,0.07314698,69457.0,69447.0,0.07219642]
[1773223316723,0.07314698,69457.0,69447.0,0.0002]
[1773223317221,0.07314698,69457.0,69448.0,0.0002]
[1773223317650,0.07314732,69457.0,69448.0,0.0002]
[1773223318020,0.00116,69456.0,69448.0,0.0002]
[1773223318754,0.07198905,69455.0,69448.0,0.0002]
[1773223322667,7.5e-05,69461.0,69448.0,0.0002]
[1773223322836,0.00116,69464.0,69448.0,0.0002]
[1773223323244,0.07198076,69463.0,69448.0,0.07219631]
[1773223323657,0.00116,69464.0,69448.0,0.07219631]
[1773223323860,0.07314004,69464.0,69448.0,0.07219631]
[1773223323988,0.00116,69464.0,69448.0,0.07219631]
[1773223324193,0.00015749,69467.0,69450.0,0.03981354]
[1773223324403,0.07196822,69476.0,69457.0,0.03981354]
[1773223324404,0.07234524,69475.0,69457.0,0.03981354]
[1773223324609,1e-08,69475.0,69458.0,0.00116]
[1773223325014,0.07196927,69475.0,69457.0,0.00010206]
[1773223325272,1e-08,69475.0,69459.0,0.07198491]
[1773223325618,0.00116001,69475.0,69459.0,0.07198491]
[1773223326049,1e-08,69475.0,69459.0,0.07198491]
[1773223326246,1e-08,69475.0,69460.0,0.03981354]
[1773223326579,0.00022001,69479.0,69460.0,0.03981354]
[1773223326782,0.07218439,69479.0,69460.0,0.03981354]
[1773223327384,0.07218439,69479.0,69461.0,0.07198283]
[1773223327925,0.00022001,69479.0,69461.0,0.07198283]
[1773223328738,0.00022001,69479.0,69462.0,0.11776704]
[1773223329067,0.00022001,69479.0,69463.0,0.04486357]
[1773223329183,0.00022001,69479.0,69465.0,0.04486357]
[1773223329622,0.07218444,69479.0,69467.0,0.04486357]
[1773223329979,0.00022001,69479.0,69467.0,0.04486357]
[1773223331115,0.07218446,69479.0,69467.0,0.04486357]
[1773223331330,0.07218446,69479.0,69467.0,0.04586357]
[1773223331586,0.07218446,69479.0,69467.0,0.04486357]
[1773223331809,0.07218446,69479.0,69470.0,0.04477974]
[1773223333637,0.00022001,69479.0,69470.0,0.04477974]
[1773223333839,0.00022001,69479.0,69472.0,0.04463312]
[1773223336011,0.00022001,69479.0,69473.0,0.11649924]
[1773223338149,0.00022001,69479.0,69473.0,0.04539303]
[1773223339720,0.21480391,69485.0,69473.0,0.04539303]
[1773223339721,0.00022001,69486.0,69473.0,0.04439303]
[1773223339921,0.00022001,69486.0,69477.0,0.04425925]
[1773223340125,0.00022001,69486.0,69479.0,0.04425925]
[1773223340820,0.00022001,69492.0,69479.0,0.04425925]
[1773223340992,0.00022001,69492.0,69481.0,0.04425925]
[1773223341193,0.00031143,69492.0,69481.0,0.04425925]
[1773223342267,0.00031143,69492.0,69483.0,0.04409132]
[1773223342453,0.00031143,69492.0,69482.0,0.07196108]
[1773223342454,0.00031143,69492.0,69485.0,0.04409132]
[1773223342616,0.07223433,69504.0,69485.0,0.04409132]
[1773223342825,0.00022001,69486.0,69485.0,0.04418274]
[1773223343036,0.07310422,69499.0,69485.0,0.04418274]
[1773223343987,0.07310422,69499.0,69485.0,0.04518274]
[1773223344203,0.00116,69499.0,69485.0,0.04518274]
[1773223344514,0.00116,69499.0,69487.0,0.04420196]
[1773223344922,0.07310381,69499.0,69487.0,0.04420196]
[1773223345051,0.00116,69499.0,69487.0,0.04420196]
[1773223345610,0.00023,69500.0,69487.0,0.03981354]
[1773223345762,0.00139,69500.0,69488.0,0.0441807]
[1773223346158,0.00022001,69503.0,69488.0,0.0441807]
[1773223346558,0.00022001,69503.0,69490.0,0.03981354]
[1773223346786,0.00022001,69503.0,69494.0,0.0441807]
[1773223346984,0.07215429,69508.0,69498.0,0.03981354]
[1773223346985,0.00022001,69508.0,69498.0,0.03981354]
[1773223347186,0.00022001,69515.0,69499.0,0.0441807]
[1773223347561,0.00022001,69515.0,69501.0,0.0441807]
[1773223348574,0.00022001,69515.0,69502.0,0.07194037]
[1773223348796,0.00022001,69515.0,69503.0,0.04405439]
[1773223350167,0.00022001,69510.0,69503.0,0.04405439]
[1773223350765,0.00022001,69510.0,69505.0,0.04393497]
[1773223353147,0.00022001,69510.0,69506.0,0.07193623]
[1773223353371,0.00022001,69510.0,69507.0,0.05255575]
[1773223354255,1e-08,69514.0,69507.0,0.05255575]
[1773223354403,0.00011199,69514.0,69507.0,0.05255575]
[1773223354606,0.00011199,69514.0,69508.0,0.00116]
[1773223354807,0.00011199,69514.0,69509.0,0.05255575]
[1773223355391,0.00011199,69514.0,69510.0,0.07193209]
[1773223355603,0.00011199,69514.0,69510.0,0.12448784]
[1773223356782,0.00116,69513.0,69496.0,7.5e-05]
[1773223356932,0.00116,69513.0,69497.0,0.07194468]
[1773223357138,0.00116,69513.0,69489.0,0.07195383]
[1773223357139,0.11945321,69509.0,69489.0,0.07195383]
[1773223357336,0.11945321,69509.0,69487.0,0.07203066]
[1773223357337,0.07193416,69508.0,69487.0,7.5e-05]
[1773223357584,0.03981354,69500.0,69484.0,0.07195901]
[1773223357736,0.00116,69499.0,69484.0,0.07195901]
[1773223357937,0.00116,69498.0,69484.0,0.07195901]
[1773223358153,0.00116,69498.0,69484.0,0.12451476]
[1773223358393,0.07193416,69508.0,69484.0,0.12451476]
[1773223358599,0.00116,69507.0,69484.0,0.12451476]
[1773223358999,0.07193416,69508.0,69484.0,0.07195901]
[1773223359199,0.07193416,69508.0,69485.0,0.05255575]
[1773223359200,0.00116,69506.0,69485.0,0.05255575]
[1773223359929,0.07193727,69505.0,69486.0,0.07195694]
[1773223360687,0.07193727,69505.0,69485.0,0.1245133]
[1773223361195,0.07193727,69505.0,69485.0,0.07195755]
[1773223361622,7.5e-05,69496.0,69485.0,0.07195755]
[1773223361853,0.00116,69495.0,69485.0,0.07195755]
[1773223362786,0.00116,69495.0,69484.0,0.07195896]
[1773223363677,0.00116,69495.0,69485.0,0.0002]
[1773223364446,0.00116,69495.0,69486.0,0.05227329]
[1773223366012,0.00116,69495.0,69487.0,0.0719559]
[1773223369233,0.00116,69495.0,69488.0,0.05191714]
[1773223369435,0.07201401,69504.0,69488.0,0.05191714]
[1773223369436,0.07193981,69503.0,69488.0,0.05191714]
[1773223369644,0.00116,69501.0,69488.0,0.05191714]
[1773223370044,0.00116,69501.0,69487.0,0.0719559]
[1773223370313,0.07194244,69500.0,69485.0,0.12389426]
[1773223370505,0.07194244,69500.0,69485.0,0.073317]
[1773223370884,0.07194244,69500.0,69488.0,0.0002]
[1773223373304,0.07194244,69500.0,69489.0,0.05156171]
[1773223373508,0.07194244,69500.0,69488.0,0.0002]
[1773223373736,0.07194244,69500.0,69485.0,0.072157]
[1773223373904,0.11172409,69500.0,69485.0,0.07215731]
[1773223374315,0.07194244,69500.0,69485.0,0.07215731]
[1773223374748,0.07194244,69500.0,69487.0,7.5e-05]
[1773223377818,0.07194244,69500.0,69488.0,0.0002]
[1773223382352,0.07182775,69500.0,69488.0,0.0002]
[1773223384017,0.07204776,69500.0,69488.0,0.0002]
[1773223385539,0.07204776,69500.0,69489.0,0.05255575]
[1773223386154,0.07204776,69500.0,69489.0,0.07195284]
[1773223386321,0.14306301,69500.0,69491.0,0.05255575]
[1773223386517,0.00116,69506.0,69491.0,0.05255575]
[1773223386941,0.11933266,69505.0,69489.0,0.07311337]
[1773223387361,0.11933266,69505.0,69489.0,0.00116]
[1773223387769,0.11933266,69505.0,69489.0,0.0731138]
[1773223388015,0.11933266,69505.0,69489.0,0.12566955]
[1773223388239,0.0719383,69504.0,69489.0,0.00116]
[1773223388457,0.0719383,69504.0,69488.0,0.07215383]
[1773223388458,0.0719383,69504.0,69488.0,0.0002]
[1773223389470,0.0719383,69504.0,69488.0,0.12470997]
[1773223389677,0.0719383,69504.0,69488.0,0.05275575]
[1773223392042,0.0719383,69504.0,69489.0,0.05255575]
[1773223392219,0.0719383,69504.0,69488.0,0.0721546]
[1773223392220,0.00022001,69505.0,69491.0,0.05255575]
[1773223392422,0.07215754,69505.0,69491.0,0.05255575]
[1773223393026,0.07215754,69505.0,69493.0,0.05255575]
[1773223393229,0.07331754,69505.0,69492.0,0.07195072]
[1773223393636,0.07215754,69505.0,69492.0,0.07195072]
[1773223394036,0.07215754,69505.0,69493.0,0.05255575]
[1773223394559,0.07215754,69505.0,69493.0,0.05355575]
[1773223394939,0.07215754,69505.0,69494.0,0.07194865]
[1773223396182,0.07215754,69505.0,69495.0,0.05255575]
[1773223397157,0.07215754,69505.0,69496.0,0.07194658]
[1773223397344,0.07215754,69505.0,69497.0,0.05255575]
[1773223397551,0.00022001,69512.0,69497.0,0.05255575]
[1773223397771,0.00022001,69519.0,69501.0,0.05255575]
[1773223398006,0.00022001,69519.0,69506.0,0.05255575]
[1773223398007,0.07214512,69517.0,69506.0,0.05255575]
[1773223398220,0.07214512,69517.0,69506.0,0.05382773]
[1773223398826,0.00022001,69512.0,69506.0,0.05382773]
[1773223398994,0.00022001,69512.0,69506.0,0.00127198]
[1773223399304,0.00022001,69512.0,69506.0,0.07320792]
[1773223399506,0.07215066,69512.0,69503.0,0.0719389]
[1773223399707,0.07215066,69512.0,69503.0,0.00037347]
[1773223400125,0.07331066,69512.0,69503.0,0.00037347]
[1773223400351,0.07331066,69512.0,69504.0,0.05255575]
[1773223400762,0.07331066,69512.0,69503.0,0.00037347]
[1773223401168,0.07331066,69512.0,69493.0,0.05255575]
[1773223401370,0.0736839,69512.0,69495.0,0.05255575]
[1773223403425,0.0736839,69512.0,69495.0,0.12550333]
[1773223403629,0.0736839,69512.0,69493.0,0.001]
[1773223403630,0.03978165,69510.0,69493.0,0.001]
[1773223403779,0.11549214,69506.0,69489.0,0.07195383]
[1773223403979,0.00116,69505.0,69489.0,0.07195383]
[1773223405356,0.00116,69505.0,69488.0,0.07215383]
[1773223405357,0.07194348,69499.0,69488.0,0.0002]
[1773223405538,0.00116,69498.0,69488.0,0.0002]
[1773223407245,0.00116,69498.0,69489.0,0.05255575]
[1773223407454,0.07310495,69498.0,69491.0,0.05255575]
[1773223408579,0.07194451,69499.0,69491.0,0.05255575]
[1773223408716,0.00116,69498.0,69491.0,0.05255575]
[1773223409712,0.00116,69498.0,69492.0,0.12450647]
[1773223409909,0.00116,69498.0,69493.0,0.05255575]
[1773223410414,0.07194279,69500.0,69493.0,0.05255575]
[1773223410666,0.00116,69499.0,69493.0,0.05255575]
[1773223411761,0.07194451,69498.0,69493.0,0.05255575]
[1773223412161,0.07194451,69498.0,69493.0,0.05275575]
[1773223412879,0.00116,69499.0,69493.0,0.07214946]
[1773223413079,0.00116,69502.0,69494.0,0.05255575]
[1773223414022,0.07193186,69511.0,69495.0,0.07194762]
[1773223414182,0.00116,69510.0,69495.0,0.12450337]
[1773223414351,0.07193186,69511.0,69496.0,0.05255575]
[1773223414550,0.00116,69510.0,69496.0,0.05255575]
[1773223414763,0.00116,69509.0,69496.0,0.05255575]
[1773223417533,0.00059325,69512.0,69500.0,0.05255575]
[1773223417939,0.07252356,69512.0,69500.0,0.05255575]
[1773223418115,0.00059325,69512.0,69500.0,0.05255575]
[1773223418581,0.07192919,69513.0,69500.0,0.05255575]
[1773223418777,0.00011191,69513.0,69500.0,0.05355575]
[1773223419297,0.07192813,69514.0,69500.0,0.05255575]
[1773223419436,0.00022001,69512.0,69501.0,0.12449716]
[1773223419825,0.00022001,69512.0,69502.0,0.05255575]
[1773223420298,0.00022001,69512.0,69501.0,0.07194141]
[1773223420299,0.00022001,69512.0,69500.0,0.00037324]
[1773223421065,0.00022001,69512.0,69500.0,0.00137324]
[1773223421537,0.07193106,69511.0,69500.0,0.00037324]
[1773223421733,0.00116,69510.0,69500.0,0.07231564]
[1773223421913,0.00116,69510.0,69500.0,0.00037324]
[1773223422718,0.00116,69510.0,69500.0,0.0723153]
[1773223423126,0.00116,69510.0,69501.0,0.05255575]
[1773223423333,0.07215107,69512.0,69501.0,0.05255575]
[1773223423535,0.00116,69513.0,69502.0,0.07194037]
[1773223423694,0.07192593,69516.0,69504.0,0.05255575]
[1773223423892,0.07192588,69518.0,69504.0,0.05255575]
[1773223423893,0.00116,69518.0,69504.0,0.05255575]
[1773223424141,0.00116,69518.0,69508.0,0.05255575]
[1773223425453,7.5e-05,69509.0,69508.0,0.05255575]
[1773223425749,0.07214093,69521.0,69508.0,0.05255575]
[1773223425750,0.00023,69525.0,69509.0,0.05255575]
[1773223425985,0.00023,69525.0,69516.0,0.05255575]
[1773223426161,0.00023,69525.0,69516.0,0.05371575]
[1773223426565,0.07214666,69525.0,69516.0,0.05371575]
[1773223426966,0.00023,69525.0,69516.0,0.05371575]
[1773223427355,7.5e-05,69526.0,69516.0,0.05371575]
[1773223427544,7.5e-05,69526.0,69517.0,0.07192485]
[1773223427749,7.5e-05,69526.0,69518.0,0.05255575]
[1773223428648,0.07307041,69531.0,69518.0,0.05255575]
[1773223428649,0.00116,69531.0,69518.0,0.05255575]
[1773223429028,0.0002173,69534.0,69518.0,0.05255575]
[1773223429151,0.07212534,69534.0,69518.0,0.05255575]
[1773223429771,0.00022001,69525.0,69520.0,0.05255575]
[1773223430014,0.00022001,69532.0,69520.0,0.05255575]
[1773223430740,7.5e-05,69535.0,69520.0,0.05255575]
[1773223430741,7.5e-05,69535.0,69521.0,0.05255575]
[1773223430872,7.5e-05,69535.0,69523.0,0.05255575]
[1773223431820,7.5e-05,69535.0,69525.0,0.05255575]
[1773223432024,0.00018695,69535.0,69523.0,0.001]
[1773223432607,0.00018695,69535.0,69523.0,0.002]
[1773223432803,0.00018695,69535.0,69523.0,0.07291858]
[1773223433008,0.00116,69534.0,69523.0,0.07291858]
[1773223433229,0.00116,69534.0,69521.0,0.07192058]
[1773223433447,0.00116,69534.0,69523.0,0.001]
[1773223433945,0.00116,69534.0,69523.0,0.07191851]
[1773223433946,0.0719083,69533.0,69523.0,0.07191851]
[1773223434250,0.0719083,69534.0,69524.0,0.05255575]
[1773223434450,0.00116,69534.0,69524.0,0.05255575]
[1773223434745,0.07306735,69534.0,69524.0,0.05255575]
[1773223435854,0.07306735,69534.0,69524.0,0.07191692]
[1773223436048,0.07306735,69534.0,69522.0,0.07191919]
[1773223436247,0.07306735,69534.0,69521.0,0.07192067]
[1773223436751,0.07328736,69534.0,69521.0,0.07192067]
[1773223437211,0.07328736,69534.0,69521.0,0.07292067]
[1773223437944,0.07328736,69534.0,69521.0,0.07192067]
[1773223439718,0.07328736,69534.0,69521.0,0.12447642]
[1773223441134,0.07328736,69534.0,69521.0,0.07192067]
[1773223441634,0.07328736,69534.0,69520.0,0.12447646]
[1773223441837,0.07328736,69534.0,69520.0,0.12563646]
[1773223442269,0.07328736,69534.0,69520.0,0.12447646]
[1773223445720,0.07328736,69534.0,69519.0,0.07308277]
[1773223446493,0.07428736,69534.0,69520.0,0.05255575]
[1773223446919,0.07328736,69534.0,69520.0,0.05255575]
[1773223448097,0.07328736,69534.0,69521.0,0.07192071]
[1773223449000,0.07328736,69534.0,69519.0,0.07192071]
[1773223449356,0.07328736,69534.0,69519.0,0.07209621]
[1773223449597,0.07328736,69534.0,69520.0,0.05255575]
[1773223450052,0.07328736,69534.0,69519.0,0.0001755]
[1773223450752,0.03973952,69530.0,69511.0,0.07213101]
[1773223450968,0.03973952,69530.0,69514.0,0.00116]
[1773223452290,0.07191243,69529.0,69514.0,0.00116]
[1773223452469,0.00116,69528.0,69514.0,0.00116]
[1773223452878,7.5e-05,69526.0,69514.0,0.00116]
[1773223453077,7.5e-05,69526.0,69518.0,0.0002]
[1773223456928,7.5e-05,69526.0,69511.0,0.0002]
[1773223458378,7.5e-05,69526.0,69511.0,0.05275575]
[1773223459140,7.5e-05,69526.0,69511.0,0.0721304]
[1773223459336,7.5e-05,69526.0,69512.0,0.05255575]
[1773223460379,7.5e-05,69526.0,69511.0,0.0002]
[1773223460587,7.5e-05,69526.0,69512.0,0.05255575]
[1773223460927,7.5e-05,69526.0,69512.0,0.05275575]
[1773223463059,7.5e-05,69526.0,69516.0,0.03973952]
[1773223463261,0.07190546,69536.0,69518.0,0.05255575]
[1773223463460,0.07190546,69536.0,69529.0,0.05255575]
[1773223464589,0.07190313,69538.0,69529.0,0.05255575]
[1773223464788,0.00022001,69541.0,69529.0,0.05255575]
[1773223464998,0.07189505,69546.0,69520.0,0.35765568]
[1773223464999,0.0720961,69549.0,69531.0,0.05255575]
[1773223465251,0.00116,69547.0,69540.0,0.05255575]
[1773223465475,0.0720961,69549.0,69540.0,0.07190102]
[1773223465476,0.00116,69548.0,69540.0,0.07190102]
[1773223465656,0.00116,69548.0,69539.0,0.1116413]
[1773223465657,0.00116,69548.0,69541.0,0.05255575]
[1773223466867,0.00116,69548.0,69538.0,0.03973952]
[1773223467173,0.00116,69548.0,69536.0,0.07190519]
[1773223467174,0.00116,69548.0,69539.0,0.03884914]
[1773223467375,0.0720961,69549.0,69539.0,0.07190189]
[1773223467552,0.0732561,69549.0,69540.0,0.03884914]
[1773223468583,0.00116,69548.0,69540.0,0.03884914]
[1773223468811,0.07196675,69552.0,69541.0,0.03884914]
[1773223468812,0.07196435,69552.0,69541.0,0.03884914]
[1773223469501,7.5e-05,69552.0,69542.0,0.03884914]
[1773223471542,0.07189279,69548.0,69542.0,0.03884914]
[1773223471732,0.07305279,69548.0,69536.0,0.11075434]
[1773223472590,0.11112483,69548.0,69536.0,0.0719052]
[1773223473668,0.11112483,69548.0,69533.0,0.03884914]
[1773223475379,0.11112483,69548.0,69539.0,0.00048]
[1773223475791,0.07305279,69548.0,69539.0,0.07238195]
[1773223476300,0.07305279,69548.0,69539.0,0.00048]
[1773223478027,0.07305279,69548.0,69535.0,7.5e-05]
[1773223478235,0.11112483,69548.0,69535.0,7.5e-05]
[1773223478865,0.11134484,69548.0,69535.0,7.5e-05]
[1773223479136,0.0732728,69548.0,69535.0,7.5e-05]
[1773223479329,0.03807204,69547.0,69535.0,7.5e-05]
[1773223480314,0.03807204,69545.0,69535.0,7.5e-05]
[1773223482334,0.07189692,69544.0,69535.0,7.5e-05]
[1773223482543,0.07305692,69544.0,69535.0,7.5e-05]
[1773223482968,0.00116,69543.0,69536.0,0.03884914]
[1773223484326,0.07189899,69542.0,69535.0,7.5e-05]
[1773223486953,0.03807204,69541.0,69527.0,0.03884914]
[1773223487153,0.03807204,69541.0,69527.0,0.03896109]
[1773223487802,0.03807204,69541.0,69528.0,0.0002]
[1773223488009,0.03807204,69541.0,69525.0,0.00023]
[1773223488229,0.03818395,69541.0,69523.0,0.07191763]
[1773223488815,0.03807204,69539.0,69523.0,0.07191763]
[1773223489325,0.03807204,69539.0,69523.0,0.11076677]
[1773223489884,0.00116,69538.0,69523.0,0.11076677]
[1773223490088,0.03910555,69538.0,69523.0,0.11076677]
[1773223493838,0.07190416,69537.0,69523.0,0.11076677]
[1773223494037,0.10984971,69537.0,69523.0,0.11076677]
[1773223494471,0.07190416,69537.0,69523.0,0.11076677]
[1773223494770,0.03794555,69536.0,69523.0,0.11076677]
[1773223494983,7.5e-05,69535.0,69523.0,0.11076677]
[1773223496177,0.07198123,69535.0,69523.0,0.11076677]
[1773223496388,0.07198123,69535.0,69523.0,0.11096677]
[1773223498269,0.07198123,69535.0,69523.0,0.03904914]
[1773223498468,0.07198123,69535.0,69523.0,0.11096772]
[1773223499069,0.07198123,69535.0,69523.0,0.03904914]
[1773223499277,0.03661852,69534.0,69520.0,0.00116]
[1773223499472,0.03661852,69534.0,69516.0,0.03778738]
[1773223499473,0.03661852,69534.0,69518.0,0.00116]
[1773223499683,0.03661852,69534.0,69516.0,0.03778738]
[1773223499961,0.03661852,69534.0,69516.0,0.03894738]
[1773223500161,0.03661852,69534.0,69516.0,0.03778738]
[1773223500356,0.03661852,69532.0,69517.0,0.001235]
[1773223500598,0.00116,69531.0,69518.0,0.03758738]
[1773223501010,0.00011191,69541.0,69521.0,0.03758738]
[1773223501161,0.07189912,69542.0,69531.0,0.03758738]
[1773223501360,0.07190012,69541.0,69531.0,0.03769929]
[1773223501809,0.07190012,69541.0,69531.0,0.00011191]
[1773223502214,0.07190012,69541.0,69531.0,0.00111191]
[1773223502763,0.07197503,69543.0,69532.0,0.03758738]
[1773223502963,0.00116,69542.0,69532.0,0.03758738]
[1773223503163,0.07313503,69543.0,69532.0,0.03758738]
[1773223503656,0.07197503,69543.0,69532.0,0.03758738]
[1773223505057,7.5e-05,69543.0,69534.0,0.03758738]
[1773223505438,0.07189514,69546.0,69534.0,0.03758738]
[1773223506245,0.00022001,69542.0,69534.0,0.03758738]
[1773223507582,0.00022001,69542.0,69536.0,0.03758738]
[1773223509735,0.00022001,69542.0,69538.0,0.03758738]
[1773223511855,0.00022001,69542.0,69538.0,0.1094898]
[1773223512891,0.00022001,69542.0,69539.0,0.03758738]
[1773223513608,0.07211921,69542.0,69535.0,7.5e-05]
[1773223513760,0.07211921,69542.0,69535.0,0.07198108]
[1773223515763,0.07211921,69542.0,69535.0,7.5e-05]
[1773223516975,0.03661852,69541.0,69533.0,0.00116]
[1773223517317,0.03661852,69541.0,69527.0,0.0719145]
[1773223517464,0.03673041,69541.0,69527.0,0.0719145]
[1773223517878,0.03673041,69541.0,69527.0,0.0730745]
[1773223518323,0.07306106,69540.0,69526.0,7.5e-05]
[1773223518516,0.03661852,69538.0,69526.0,7.5e-05]
[1773223520317,0.07306106,69540.0,69528.0,0.03973315]
[1773223520524,0.07190106,69540.0,69529.0,0.04022369]
[1773223520719,0.00116,69539.0,69529.0,0.04022369]
[1773223520927,0.00116,69539.0,69531.0,0.0002]
[1773223521269,0.00116,69538.0,69531.0,0.0002]
[1773223521677,0.07190106,69540.0,69531.0,0.0002]
[1773223521956,0.00116,69539.0,69531.0,0.0002]
[1773223522344,0.07190313,69538.0,69531.0,0.0002]
[1773223522954,0.07190313,69538.0,69531.0,0.0012]
[1773223523364,0.07190313,69538.0,69531.0,0.0002]
[1773223525753,0.03943983,69537.0,69526.0,7.5e-05]
[1773223526558,0.0719052,69536.0,69526.0,7.5e-05]
[1773223526755,0.00116,69536.0,69527.0,0.04022369]
[1773223527727,0.07189538,69546.0,69527.0,0.04022369]
[1773223527887,0.00022001,69548.0,69531.0,0.04022369]
[1773223528097,0.00023,69550.0,69541.0,0.04022369]
[1773223528098,1e-08,69550.0,69541.0,0.04022369]
[1773223528708,0.00116,69555.0,69543.0,0.04022369]
[1773223529063,0.07208572,69557.0,69542.0,0.07189899]
[1773223529064,0.0002022,69557.0,69546.0,0.04022369]
[1773223529266,7.5e-05,69561.0,69548.0,0.04022369]
[1773223529512,0.04059983,69573.0,69550.0,0.04022369]
[1773223529682,0.00012,69575.0,69551.0,0.04022369]
[1773223529683,0.07194509,69570.0,69551.0,0.04022369]
[1773223530464,0.07205704,69570.0,69551.0,0.04022369]
[1773223530667,0.07205704,69570.0,69553.0,0.04022369]
[1773223530868,0.07205704,69570.0,69555.0,0.04022369]
[1773223531074,0.00022001,69564.0,69555.0,0.04022369]
[1773223533325,0.00022001,69564.0,69556.0,0.07188452]